bitfinex/quotes_ETHUSD_20240604
["timestamp","ask_amount","ask_price","bid_price","bid_amount"]
[1717524781129,2.13803626,3817.7,3817.5,2.67291772]
[1717524781361,1.57208549,3817.7,3817.5,5.35510949]
[1717524781670,0.56595077,3817.9,3817.5,5.35510949]
[1717524781671,2.13803626,3817.9,3817.8,2.6193]
[1717524781830,7.3,3818.0,3817.8,2.6193]
[1717524782028,7.3,3818.0,3817.8,3.40853995]
[1717524783429,7.3,3818.0,3817.8,2.67234753]
[1717524785158,8.084,3818.0,3817.8,2.67234753]
[1717524786462,7.3,3818.0,3817.8,2.67234753]
[1717524787268,0.784,3818.1,3817.8,2.67234753]
[1717524801750,0.784,3817.9,3817.8,2.67234753]
[1717524802081,0.784,3817.9,3817.1,2.428]
[1717524802082,0.784,3817.9,3817.5,2.61946]
[1717524802282,0.784,3817.7,3817.5,2.61946]
[1717524802511,0.784,3817.7,3817.6,0.05277656]
[1717524802690,0.31286,3817.7,3817.6,0.05277656]
[1717524802857,0.31286,3817.7,3817.2,2.61966]
[1717524802858,1.09686,3817.7,3817.2,2.61966]
[1717524803046,0.784,3817.4,3817.2,2.61966]
[1717524803244,0.784,3817.6,3817.4,2.61953]
[1717524805065,1.57185557,3818.0,3817.6,2.61942]
[1717524805261,0.784,3818.0,3817.6,2.61942]
[1717524805463,0.56593004,3818.1,3817.8,2.61929]
[1717524805662,8.87185557,3818.2,3818.0,2.61914]
[1717524805663,8.084,3818.2,3818.0,2.61914]
[1717524805867,0.784,3818.2,3818.0,2.61914]
[1717524810779,0.784,3818.2,3818.1,0.05220233]
[1717524810987,0.784,3818.2,3818.0,2.61914]
[1717524811189,0.784,3818.2,3818.1,0.05220233]
[1717524811412,0.784,3818.2,3818.0,2.61914]
[1717524811710,0.784,3818.2,3818.1,0.05220233]
[1717524812276,0.784,3818.2,3818.0,2.61914]
[1717524812671,0.784,3818.2,3818.1,0.05220233]
[1717524813098,0.784,3818.2,3818.0,2.61914]
[1717524813619,0.784,3818.2,3818.1,0.05220233]
[1717524816502,2.2626,3818.4,3818.2,2.61903]
[1717524816503,1.57183021,3818.4,3818.2,2.61903]
[1717524816724,4.94034,3818.7,3818.2,2.61903]
[1717524816725,2.92168919,3818.5,3818.2,2.61903]
[1717524816937,2.35583021,3818.5,3818.3,0.05213152]
[1717524817126,2.92168919,3818.5,3818.3,0.05213152]
[1717524817326,2.35583021,3818.5,3818.2,2.61903]
[1717524817522,2.13768919,3818.5,3818.4,0.05209611]
[1717524817801,0.56585898,3818.6,3818.5,2.61882]
[1717524817997,2.35583021,3818.7,3818.5,2.67080793]
[1717524818224,1.57183021,3818.8,3818.5,2.67080793]
[1717524818439,2.35583021,3818.9,3818.5,2.67080793]
[1717524818639,2.92168919,3818.9,3818.5,2.67080793]
[1717524818939,2.35583021,3818.9,3818.5,2.67080793]
[1717524819144,0.784,3818.7,3818.5,2.67080793]
[1717524819301,0.784,3818.8,3818.5,2.67080793]
[1717524819501,2.13768919,3818.9,3818.5,2.67080793]
[1717524819744,0.784,3818.8,3818.5,2.67080793]
[1717524821449,0.784,3818.6,3818.5,2.67080793]
[1717524821619,1.57164417,3818.9,3818.5,2.67080793]
[1717524821950,0.784,3818.6,3818.5,2.67080793]
[1717524823151,0.784,3818.8,3818.5,2.67080793]
[1717524823654,2.13743607,3819.0,3818.5,2.67080793]
[1717524823832,0.784,3818.8,3818.5,2.67080793]
[1717524824030,2.13743607,3819.0,3818.5,2.67080793]
[1717524824212,1.57164417,3819.0,3818.5,2.67080793]
[1717524824418,0.784,3818.8,3818.5,2.67080793]
[1717524827279,0.5657885,3819.0,3818.5,2.67080793]
[1717524827450,0.784,3818.8,3818.5,2.67080793]
[1717524828574,0.5657885,3819.0,3818.5,2.67080793]
[1717524828575,0.784,3818.9,3818.5,2.67080793]
[1717524828883,0.5657885,3819.0,3818.7,2.61866]
[1717524829053,2.35560325,3819.0,3818.7,2.61866]
[1717524829382,2.35560325,3819.0,3818.8,0.05154005]
[1717524829383,1.57160325,3819.0,3818.8,0.05154005]
[1717524829679,2.35560325,3819.0,3818.8,0.05154005]
[1717524829848,1.57160325,3818.9,3818.8,0.05154005]
[1717524830846,2.35560325,3819.0,3818.8,0.05154005]
[1717524831266,1.57160325,3818.9,3818.8,0.05154005]
[1717524832957,1.57164994,3818.9,3818.8,0.05154005]
[1717524833138,0.784,3819.0,3818.8,0.05154005]
[1717524833344,1.57164585,3818.9,3818.8,0.05154005]
[1717524834282,0.784,3819.0,3818.8,0.05154005]
[1717524834781,1.3497925,3819.0,3818.8,0.05154005]
[1717524834980,0.784,3819.0,3818.8,0.05154005]
[1717524835384,0.5657925,3818.9,3818.8,0.05154005]
[1717524835586,0.56581056,3818.9,3818.4,2.61889]
[1717524835889,0.784,3818.7,3818.4,2.61889]
[1717524836059,0.784,3818.7,3818.5,0.0515893]
[1717524837083,1.57164721,3818.8,3818.5,0.0515893]
[1717524837392,0.784,3818.6,3818.5,0.0515893]
[1717524839870,3.0913,3818.6,3818.1,2.61905]
[1717524840063,5.23519,3818.6,3818.2,0.05151391]
[1717524840283,0.784,3818.3,3817.8,2.61925]
[1717524840484,2.13746169,3818.5,3817.8,2.61925]
[1717524840705,0.784,3818.1,3818.0,2.61916]
[1717524840852,0.784,3818.2,3818.0,2.61916]
[1717524841056,0.784,3818.2,3818.1,0.05151768]
[1717524841490,2.13746169,3818.5,3818.1,0.05151768]
[1717524841663,0.784,3818.2,3818.1,0.05151768]
[1717524842258,2.13746169,3818.5,3818.1,0.05151768]
[1717524842480,0.784,3818.2,3818.1,0.05151768]
[1717524843236,2.13746169,3818.5,3818.1,0.05151768]
[1717524843358,0.784,3818.2,3818.1,0.05151768]
[1717524845264,1.57164721,3818.3,3818.1,0.05151768]
[1717524845461,0.784,3818.2,3818.1,0.05151768]
[1717524846108,2.13746169,3818.5,3818.2,2.61902]
[1717524846268,1.57164721,3818.5,3818.2,2.61902]
[1717524846468,0.784,3818.3,3818.2,2.61902]
[1717524847789,2.35564721,3818.3,3818.2,2.61902]
[1717524848123,2.35564721,3818.3,3817.9,2.6192]
[1717524848423,3.1074,3818.0,3817.6,2.61942]
[1717524848708,0.784,3817.7,3817.3,2.61961]
[1717524849012,3.89528408,3818.0,3817.3,2.61961]
[1717524849013,0.784,3817.4,3817.3,2.61961]
[1717524851334,0.784,3817.4,3817.3,2.66840152]
[1717524851576,0.784,3817.6,3817.4,2.61958]
[1717524852019,0.784,3817.6,3817.5,0.04872068]
[1717524853146,2.3234,3818.0,3817.6,2.61941]
[1717524853438,0.784,3817.7,3817.6,2.61941]
[1717524853797,0.784,3817.7,3817.0,3.0]
[1717524853798,0.784,3817.7,3817.3,2.61963]
[1717524853999,0.784,3817.4,3817.0,2.61982]
[1717524854310,0.784,3817.1,3817.0,2.61982]
[1717524855003,1.57188408,3817.8,3816.6,2.62012]
[1717524855246,0.784,3817.4,3816.6,2.62012]
[1717524855416,0.784,3817.4,3816.7,0.90008362]
[1717524856649,0.784,3817.4,3817.1,2.61973]
[1717524857002,0.784,3817.2,3817.1,2.61973]
[1717524861257,0.784,3817.2,3817.1,2.61973]
[1717524866261,0.784,3817.2,3817.1,2.66877905]
[1717524869939,0.784,3817.4,3817.1,2.66877905]
[1717524871654,2.3802,3817.7,3817.4,2.61955]
[1717524871876,0.784,3817.6,3817.4,2.61955]
[1717524872025,2.3802,3817.7,3817.5,0.0487871]
[1717524872229,0.784,3817.6,3817.5,0.0487871]
[1717524881556,0.784,3817.6,3817.4,2.61955]
[1717524884666,1.57203112,3817.8,3817.6,2.61942]
[1717524885177,2.35603112,3817.8,3817.6,2.61942]
[1717524885350,0.784,3817.8,3817.6,2.61942]
[1717524885655,1.34992377,3817.8,3817.6,2.61942]
[1717524885856,2.92195489,3817.8,3817.6,2.61942]
[1717524886166,0.784,3817.8,3817.6,2.61942]
[1717524886479,1.349917,3817.8,3817.6,2.61942]
[1717524887190,0.784,3817.8,3817.6,2.61942]
[1717524888951,1.349917,3817.8,3817.6,2.61942]
[1717524889368,0.784,3817.8,3817.6,2.61942]
[1717524892317,2.92194812,3817.8,3817.6,2.61942]
[1717524892606,2.35603112,3817.8,3817.6,2.61942]
[1717524893337,2.92194812,3817.8,3817.6,2.61942]
[1717524893610,2.3796,3817.6,3816.9,0.55026624]
[1717524893765,0.784,3817.2,3816.9,2.61991]
[1717524894167,0.784,3817.4,3817.3,2.61964]
[1717524896183,0.784,3817.4,3817.3,2.66856438]
[1717524899515,0.784,3817.6,3817.3,2.66856438]
[1717524899895,0.784,3817.6,3817.5,2.61951]
[1717524900097,0.784,3817.6,3817.5,2.66836354]
[1717524900295,2.13797604,3817.7,3817.5,2.66836354]
[1717524900618,1.34993149,3817.7,3817.5,2.66836354]
[1717524901483,0.56593149,3817.7,3817.5,2.66836354]
[1717524901700,1.57204455,3817.8,3817.7,2.61937]
[1717524901901,9.7484,3818.2,3817.7,2.66815271]
[1717524901902,1.57204455,3817.9,3817.7,2.66815271]
[1717524902102,2.13797604,3817.9,3817.7,2.66815271]
[1717524902423,2.13797604,3818.1,3817.7,0.04878271]
[1717524902753,8.084,3818.2,3818.0,2.61917]
[1717524902933,0.784,3818.2,3818.0,2.61917]
[1717524903097,0.784,3818.2,3818.1,0.04864106]
[1717524903838,2.13787201,3818.3,3818.1,0.04864106]
[1717524904038,0.784,3818.2,3818.1,0.04864106]
[1717524904603,2.13787201,3818.4,3818.2,2.61903]
[1717524904799,1.57204455,3818.6,3818.5,2.61882]
[1717524905122,2.13785699,3818.6,3818.5,2.61882]
[1717524905350,14.8356,3819.2,3818.5,2.66712014]
[1717524905351,0.784,3818.8,3818.5,2.66712014]
[1717524907641,0.56572761,3819.1,3818.5,2.66712014]
[1717524907873,0.784,3818.7,3818.5,2.66712014]
[1717524909509,2.4756,3819.2,3818.8,2.61862]
[1717524909747,0.784,3818.9,3818.8,2.61862]
[1717524911339,0.784,3818.9,3818.8,2.66663364]
[1717524912451,0.784,3818.9,3818.8,2.61862]
[1717524913233,0.784,3818.9,3818.5,2.61879]
[1717524913447,0.784,3818.6,3818.5,2.61879]
[1717524914641,2.4044,3818.8,3818.5,2.61879]
[1717524914916,0.784,3818.7,3818.5,2.61879]
[1717524916259,2.2507,3818.6,3818.5,2.61879]
[1717524916815,2.2507,3818.6,3818.2,2.61899]
[1717524917028,0.784,3818.4,3818.2,2.61899]
[1717524918919,3.0347,3818.6,3818.4,2.61883]
[1717524919148,0.784,3818.6,3818.4,2.61883]
[1717524919724,2.2507,3818.9,3818.4,2.61883]
[1717524920036,0.784,3818.7,3818.4,2.61883]
[1717524920435,0.784,3818.7,3818.6,2.61876]
[1717524920881,0.784,3818.7,3818.6,2.6667084]
[1717524921239,3.84876558,3819.2,3818.6,2.6667084]
[1717524921566,0.784,3818.7,3818.6,2.6667084]
[1717524924145,0.784,3818.7,3818.6,2.61876]
[1717524925174,0.784,3818.7,3818.3,2.61891]
[1717524925391,0.784,3818.5,3818.3,2.61891]
[1717524925573,0.784,3818.5,3818.4,0.04789585]
[1717524925740,0.784,3818.5,3818.3,2.61891]
[1717524929080,0.784,3818.7,3818.4,2.61888]
[1717524929582,0.56577011,3818.9,3818.6,2.61876]
[1717524929751,0.784,3818.7,3818.6,2.61876]
[1717524929935,0.56577011,3818.9,3818.6,2.66661667]
[1717524930132,1.57159927,3819.0,3818.9,2.61855]
[1717524930370,1.57159927,3819.5,3819.2,2.61834]
[1717524930585,1.57159927,3819.6,3819.2,2.66598432]
[1717524931051,0.784,3819.5,3819.2,2.66598432]
[1717524933956,8.084,3819.3,3819.2,2.66598432]
[1717524934323,10.3726,3819.3,3819.2,0.04764432]
[1717524934454,13.31831519,3819.3,3819.2,0.04764432]
[1717524934650,11.74671592,3819.3,3818.6,2.61872]
[1717524934888,0.784,3818.7,3818.6,2.61872]
[1717524936473,0.784,3818.7,3818.6,2.66460251]
[1717524938729,0.784,3818.7,3818.6,0.04588251]
[1717524938931,3.0573,3818.7,3818.6,0.04588251]
[1717524939262,3.520188,3818.7,3818.3,2.61894]
[1717524939451,3.0573,3818.7,3818.5,2.61878]
[1717524939588,0.784,3818.9,3818.8,2.61861]
[1717524940231,0.784,3819.0,3818.8,2.66442172]
[1717524945435,0.784,3819.1,3818.8,2.66442172]
[1717524945732,0.784,3818.9,3818.8,2.66442172]
[1717524945908,0.784,3818.9,3818.8,2.93086389]
[1717524946231,0.784,3819.1,3818.9,2.61855]
[1717524946625,0.784,3819.1,3819.0,0.04598124]
[1717524948433,4.05888,3819.5,3819.1,2.61839]
[1717524948735,0.784,3819.2,3819.1,2.61839]
[1717524949125,0.784,3819.2,3819.1,2.66433585]
[1717524951335,1.11113,3819.2,3819.1,2.66433585]
[1717524951538,1.11113,3819.2,3819.1,0.04594585]
[1717524951539,11.50690876,3819.2,3819.1,0.04594585]
[1717524951742,13.72586035,3819.2,3817.9,0.55026624]
[1717524951903,0.96238969,3819.1,3818.1,2.61907]
[1717524952102,0.784,3818.2,3818.1,2.61907]
[1717524952801,1.5713593,3818.7,3818.1,2.61907]
[1717524952802,0.784,3818.4,3818.1,2.61907]
[1717524953027,1.5713593,3818.7,3818.1,2.61907]
[1717524953201,0.784,3818.3,3818.1,2.61907]
[1717524956097,2.13705626,3818.9,3818.2,0.03999449]
[1717524956303,0.784,3818.3,3818.1,2.61907]
[1717524956498,0.784,3818.3,3818.2,0.03999449]
[1717524958345,0.784,3818.3,3818.1,2.61907]
[1717524958732,0.784,3818.3,3818.2,0.03999449]
[1717524959129,0.784,3818.3,3818.1,2.61907]
[1717524959331,0.784,3818.3,3818.2,0.03999449]
[1717524959518,0.784,3818.3,3818.1,2.61907]
[1717524959907,0.784,3818.3,3818.2,0.03999449]
[1717524960636,1.5713593,3818.8,3818.3,2.61892]
[1717524960939,2.61845,3819.1,3818.3,2.61892]
[1717524960940,0.784,3818.4,3818.3,2.61892]
[1717524961133,0.784,3818.4,3818.3,2.65887908]
[1717524961944,2.13715974,3819.0,3818.3,2.65887908]
[1717524962126,0.784,3818.5,3818.3,2.61892]
[1717524962653,0.56576951,3819.0,3818.5,2.61877]
[1717524962858,0.784,3818.6,3818.5,2.61877]
[1717524963259,0.784,3818.6,3818.5,2.65886675]
[1717524964207,1.5713593,3818.9,3818.5,2.93475343]
[1717524964483,0.784,3818.7,3818.5,2.93475343]
[1717524964637,2.13712091,3819.1,3818.7,2.61864]
[1717524964979,0.784,3818.8,3818.7,2.61864]
[1717524965114,2.13712091,3819.1,3818.7,2.61864]
[1717524965315,0.784,3818.8,3818.7,2.61864]
[1717524965555,0.784,3818.8,3818.7,2.880504]
[1717524965753,2.13712091,3819.1,3818.9,2.61849]
[1717524965914,0.56573631,3819.1,3819.0,0.03991977]
[1717524966114,9.65549722,3819.2,3819.0,0.03991977]
[1717524966459,9.65549722,3819.2,3818.9,2.61849]
[1717524966460,0.784,3819.1,3818.9,2.61849]
[1717524967236,7.3,3819.2,3819.1,2.61841]
[1717524967454,0.784,3819.2,3819.1,2.61841]
[1717524967620,0.784,3819.2,3819.1,2.65829438]
[1717524970017,0.784,3819.2,3819.1,0.03988438]
[1717524970279,0.784,3819.2,3818.8,2.61861]
[1717524970280,3.1418,3819.2,3818.8,2.61861]
[1717524970422,0.784,3818.9,3818.8,2.61861]
[1717524971065,0.784,3818.9,3818.5,2.6188]
[1717524971362,0.784,3818.6,3818.5,2.6188]
[1717524971532,0.784,3818.6,3818.2,2.71899]
[1717524971738,0.784,3818.3,3818.2,2.71899]
[1717524972456,0.784,3818.4,3818.2,2.71899]
[1717524975983,0.784,3818.4,3818.2,0.1]
[1717524976189,0.30962,3818.3,3818.2,0.1]
[1717524976943,2.58612,3818.3,3818.2,0.1]
[1717524977707,3.15203492,3818.3,3818.2,0.1]
[1717524977912,3.70203492,3818.3,3818.2,0.1]
[1717524978337,5.27387094,3818.3,3818.2,0.1]
[1717524978703,2.3946,3818.2,3816.7,2.62005]
[1717524978896,0.784,3816.8,3816.7,2.62005]
[1717524981918,7.3,3817.5,3816.9,2.61987]
[1717524982144,7.3,3817.5,3817.2,2.6197]
[1717524983496,7.3,3818.1,3817.6,2.61943]
[1717524983699,2.9286,3818.3,3817.6,2.61943]
[1717524984539,9.91877,3818.6,3817.8,2.61926]
[1717524985900,7.3,3818.6,3817.8,2.61926]
[1717524988425,7.3,3818.6,3818.0,2.6191]
[1717524991523,7.3,3818.6,3817.7,2.61932]
[1717524991729,7.3,3818.6,3817.8,0.506692]
[1717524991909,7.3,3818.6,3817.8,0.54756104]
[1717524992112,7.3,3818.6,3818.4,2.61885]
[1717524995828,7.3,3818.6,3818.5,0.04034627]
[1717524997830,7.3,3818.6,3818.4,2.61885]
[1717524998031,9.179,3819.2,3818.4,2.61885]
[1717524998347,1.879,3818.8,3818.2,2.61902]
[1717524998523,2.3183,3819.0,3818.5,2.61879]
[1717524999328,1.14973,3819.1,3818.5,2.61879]
[1717524999832,1.14973,3819.1,3818.6,0.04029824]
[1717525000030,1.14973,3819.1,3818.5,2.61879]
[1717525000267,1.14973,3819.1,3818.6,0.04029824]
[1717525000564,1.14973,3819.1,3818.7,2.61865]
[1717525000774,0.844973,3819.0,3818.7,2.61865]
[1717525001128,0.844973,3819.0,3817.9,3.0]
[1717525001129,0.844973,3819.0,3818.4,2.61887]
[1717525001328,2.723973,3819.0,3818.8,0.04022744]
[1717525001561,2.723973,3819.0,3818.4,2.61887]
[1717525001866,2.723973,3819.0,3818.5,0.04036838]
[1717525002089,1.1173703,3818.9,3818.4,2.61887]
[1717525004474,1.879,3818.6,3818.0,2.61911]
[1717525004794,0.55,3818.5,3818.0,2.61911]
[1717525005296,0.55,3818.5,3818.1,0.04055423]
[1717525005479,0.2429,3818.4,3818.0,2.61911]
[1717525005853,0.2429,3818.4,3818.1,0.04055423]
[1717525007775,0.2429,3818.4,3817.7,2.61937]
[1717525008099,0.2429,3818.4,3817.8,0.04066046]
[1717525009472,0.55,3818.3,3817.8,0.04066046]
[1717525009680,2.01329,3818.2,3817.4,2.61956]
[1717525010001,2.01329,3818.2,3817.9,0.04062505]
[1717525010200,2.01329,3818.2,3817.4,2.61956]
[1717525010401,2.01329,3818.2,3818.0,0.04058964]
[1717525010610,2.01329,3818.2,3817.4,2.61956]
[1717525010807,2.01329,3818.2,3818.1,0.04055423]
[1717525010973,2.01329,3818.2,3817.4,2.61956]
[1717525011391,2.3133,3818.1,3817.5,0.04076671]
[1717525011700,3.24430889,3818.1,3817.5,0.04076671]
[1717525013968,0.782,3817.6,3817.5,0.04076671]
[1717525015177,0.782,3817.6,3817.1,2.61974]
[1717525015411,0.782,3817.4,3817.1,2.61974]
[1717525015883,2.6192,3818.0,3817.1,2.61974]
[1717525016202,0.59977989,3817.9,3817.2,0.04087297]
[1717525018622,4.3358,3817.7,3817.2,0.04087297]
[1717525018920,4.3358,3817.7,3816.8,2.61994]
[1717525018921,0.55,3817.6,3816.8,2.61994]
[1717525019223,0.55,3817.6,3817.3,0.04103661]
[1717525019382,0.48858,3817.5,3816.8,2.61994]
[1717525019587,3.16959,3817.4,3816.8,2.61994]
[1717525019982,3.16959,3817.4,3816.5,2.62015]
[1717525020681,4.3112,3817.3,3816.5,2.62015]
[1717525020909,1.878,3816.9,3816.2,2.62037]
[1717525021114,0.1878,3816.8,3816.2,2.62037]
[1717525021683,2.3723,3816.7,3815.9,2.62058]
[1717525022715,4.99236,3816.7,3815.9,2.62058]
[1717525023418,1.878,3816.5,3815.6,2.62079]
[1717525023582,1.292036,3816.4,3815.6,2.62079]
[1717525025562,1.878,3816.1,3815.6,2.62079]
[1717525025834,2.4938,3816.0,3815.6,2.62079]
[1717525030108,1.292036,3816.4,3815.8,2.62064]
[1717525031060,9.7938,3816.5,3816.0,2.62048]
[1717525031364,9.7938,3816.5,3816.1,0.04272638]
[1717525031910,0.55,3816.4,3816.1,0.04272638]
[1717525032113,0.55,3816.4,3815.7,2.6207]
[1717525032513,0.55,3816.4,3815.8,0.04283272]
[1717525032826,1.484202,3816.3,3815.8,0.04283272]
[1717525033021,1.484202,3816.3,3815.7,2.6207]
[1717525033354,0.55,3816.2,3815.8,0.04283272]
[1717525033561,0.55,3816.2,3815.7,2.6207]
[1717525034054,0.55,3816.2,3815.8,0.04283588]
[1717525034249,0.86669447,3816.2,3815.8,0.04283588]
[1717525034461,0.86669447,3816.2,3815.7,2.6207]
[1717525034753,0.86669447,3816.2,3815.8,0.04283588]
[1717525034942,0.86669447,3816.2,3815.7,2.6207]
[1717525035313,0.86669447,3816.2,3815.8,0.04283588]
[1717525035543,0.23508965,3816.1,3815.7,2.6207]
[1717525035723,2.4501,3815.9,3815.4,2.62091]
[1717525041442,2.4501,3815.9,3815.1,2.62111]
[1717525041838,5.07073,3815.9,3815.2,0.04335234]
[1717525042061,5.07073,3815.9,3815.3,2.62101]
[1717525043844,2.4501,3815.9,3815.3,2.62101]
[1717525044888,9.92023,3816.5,3815.4,0.05241771]
[1717525045038,7.3,3816.5,3815.5,2.62088]
[1717525045243,7.3,3816.5,3816.1,2.62046]
[1717525047876,2.62008,3816.7,3816.1,2.62046]
[1717525048087,2.4193,3816.5,3815.8,2.62064]
[1717525048253,4.2973,3816.5,3815.8,2.62064]
[1717525048448,4.2973,3816.5,3815.9,0.04301241]
[1717525048659,6.91752,3816.5,3815.8,2.62064]
[1717525048860,6.91752,3816.5,3815.9,0.04286058]
[1717525049059,6.91752,3816.5,3815.8,2.62064]
[1717525049060,7.93510923,3816.5,3815.8,2.62064]
[1717525049465,7.93510923,3816.5,3815.9,0.04286058]
[1717525049987,7.93510923,3816.5,3815.8,2.62064]
[1717525050365,7.93510923,3816.5,3815.9,0.04288902]
[1717525050814,7.93510923,3816.5,3815.8,2.62064]
[1717525051296,7.93510923,3816.5,3815.9,0.04288902]
[1717525051597,7.93510923,3816.5,3815.8,2.62064]
[1717525051895,7.93510923,3816.5,3816.0,0.04285358]
[1717525052099,7.93510923,3816.5,3815.9,0.04288902]
[1717525052303,7.93510923,3816.5,3815.8,2.62064]
[1717525052599,4.2973,3816.5,3816.0,2.62054]
[1717525053414,4.19269318,3816.8,3816.2,2.62039]
[1717525053622,0.56611917,3816.7,3816.2,2.62039]
[1717525053759,6.07069318,3816.8,3816.2,2.62039]
[1717525053760,4.49803,3816.8,3816.3,0.04274725]
[1717525054095,4.49803,3816.8,3816.2,2.62039]
[1717525054311,4.49803,3816.8,3816.4,2.62022]
[1717525054312,1.878,3816.8,3816.4,2.62022]
[1717525054460,7.3,3817.0,3816.6,2.62009]
[1717525055817,4.1828,3817.4,3816.8,2.61995]
[1717525056790,4.1828,3817.4,3816.1,2.62044]
[1717525056791,1.878,3817.4,3817.0,2.61981]
[1717525057909,7.3,3817.5,3817.2,2.61967]
[1717525058065,19.57,3817.6,3817.2,2.61967]
[1717525059303,21.95045,3817.6,3817.2,2.61967]
[1717525060403,19.57,3817.6,3817.4,2.61953]
[1717525060589,1.878,3817.9,3817.6,2.61941]
[1717525060971,7.3,3818.1,3817.7,0.04046217]
[1717525061161,7.3,3818.1,3817.8,2.6193]
[1717525061367,7.3,3818.1,3817.8,2.65972676]
[1717525065495,7.3,3818.7,3818.0,2.61917]
[1717525065820,2.3718,3818.9,3818.0,2.61917]
[1717525066120,0.55,3818.7,3818.0,2.61917]
[1717525066781,2.3718,3818.9,3818.3,2.61895]
[1717525066980,0.55,3818.8,3818.3,2.61895]
[1717525067378,1.878,3818.7,3818.3,2.61895]
[1717525067619,1.878,3818.7,3817.5,2.61949]
[1717525067620,1.878,3818.7,3818.0,2.61916]
[1717525067979,1.878,3818.7,3818.1,0.03827183]
[1717525072836,0.55,3818.8,3818.2,2.61902]
[1717525073828,7.3,3819.1,3818.4,2.61884]
[1717525074039,7.3,3819.1,3818.6,2.61872]
[1717525077232,4.9453,3819.3,3818.6,2.61872]
[1717525077408,0.55,3819.2,3818.6,2.61872]
[1717525077817,0.55,3819.2,3818.3,2.61893]
[1717525078028,0.54953,3819.1,3818.3,2.61893]
[1717525078310,1.878,3819.0,3818.4,0.03682656]
[1717525078527,2.428,3819.0,3818.4,0.03682656]
[1717525078901,2.428,3819.0,3818.3,2.61893]
[1717525079699,2.61856,3818.9,3818.3,2.61893]
[1717525079924,1.109609,3818.8,3818.3,2.61893]
[1717525080325,2.4599,3818.7,3818.0,2.61913]
[1717525080643,2.4599,3818.7,3818.1,0.0368032]
[1717525081936,1.109609,3818.8,3818.1,0.0368032]
[1717525081937,4.2887,3818.2,3818.1,0.0368032]
[1717525082138,4.2887,3818.2,3817.6,2.6194]
[1717525082315,4.2887,3818.2,3818.1,0.0368032]
[1717525082654,4.2887,3818.2,3817.6,2.6194]
[1717525082833,4.2887,3818.2,3818.1,0.0368032]
[1717525083009,2.61911,3818.1,3817.3,2.61963]
[1717525083452,2.61927,3817.9,3817.4,0.0370511]
[1717525083811,2.61927,3817.9,3817.0,2.61983]
[1717525083812,1.878,3817.8,3817.0,2.61983]
[1717525084012,2.61937,3817.7,3817.5,0.03691391]
[1717525084356,2.61937,3817.7,3817.0,2.61983]
[1717525084515,3.069107,3817.7,3817.0,2.61983]
[1717525084709,3.069107,3817.7,3817.1,0.03715737]
[1717525084915,1.878,3817.4,3816.7,2.62004]
[1717525085148,1.878,3817.4,3816.8,0.03726365]
[1717525085348,2.61965,3817.3,3816.8,0.03726365]
[1717525085570,2.61965,3817.3,3816.4,2.62026]
[1717525085571,0.449765,3817.2,3816.4,2.62026]
[1717525086022,0.55,3817.1,3816.4,2.62026]
[1717525086432,1.878,3817.0,3816.5,0.03736995]
[1717525086829,2.3639,3816.9,3816.5,0.03736995]
[1717525087026,2.3639,3816.9,3816.1,2.62047]
[1717525087228,1.878,3816.6,3816.1,2.62047]
[1717525087953,1.878,3816.6,3815.8,2.62067]
[1717525088158,0.55,3816.5,3815.8,2.62067]
[1717525090444,0.55,3816.5,3815.3,2.3456]
[1717525090445,0.55,3816.5,3815.4,2.6209]
[1717525092318,0.55,3816.5,3815.6,2.62079]
[1717525094959,0.741178,3816.8,3815.9,2.62057]
[1717525095169,9.6639,3816.9,3815.9,2.62057]
[1717525095459,3.17005,3816.8,3815.6,2.882869]
[1717525095619,2.3486,3816.7,3815.6,2.882869]
[1717525095820,2.3486,3816.7,3815.6,2.62079]
[1717525095821,0.55,3816.6,3815.6,2.62079]
[1717525096062,2.428,3816.6,3815.6,2.62079]
[1717525097304,5.04817,3816.6,3815.6,2.62079]
[1717525104699,2.3486,3816.7,3815.8,2.882704]
[1717525106288,2.3486,3816.7,3816.0,2.6205]
[1717525109405,7.3,3816.9,3816.2,2.62036]
[1717525109611,2.2922,3817.1,3816.2,2.62036]
[1717525109810,2.2922,3817.1,3816.2,2.882396]
[1717525110011,2.2922,3817.1,3816.4,2.62021]
[1717525111557,2.2922,3817.1,3816.6,2.6201]
[1717525112756,2.2922,3817.1,3816.3,2.62029]
[1717525113255,2.85829364,3817.1,3816.3,2.62029]
[1717525113816,4.91201,3817.1,3816.3,2.62029]
[1717525114352,2.44408334,3817.0,3816.3,2.62029]
[1717525114872,5.14153933,3816.9,3816.0,2.62051]
[1717525115424,3.16993,3816.9,3816.0,2.62051]
[1717525116149,0.55,3816.9,3816.0,2.62051]
[1717525117048,0.55,3816.9,3816.2,2.62038]
[1717525118163,4.4979,3817.0,3816.2,2.62038]
[1717525118466,4.4979,3817.0,3816.4,2.62024]
[1717525118854,1.878,3817.0,3816.4,2.62024]
[1717525120403,2.4597,3816.7,3816.1,2.62042]
[1717525120753,2.4597,3816.7,3816.2,0.03728099]
[1717525120989,2.4597,3816.7,3816.1,2.62042]
[1717525121379,2.4597,3816.7,3816.2,0.03728099]
[1717525121577,2.4597,3816.7,3816.1,2.62042]
[1717525121999,2.4597,3816.7,3816.2,0.03728099]
[1717525122494,2.4597,3816.7,3816.1,2.62042]
[1717525122792,2.4597,3816.7,3816.2,0.03728099]
[1717525123290,2.4597,3816.7,3816.1,2.62042]
[1717525123759,2.4597,3816.7,3816.2,0.03728099]